Cogmind - Beta 13 @@@ ROGUE MODE // 2024.04.01 @ 15:00:20 Player: Olafz Result: Destroyed by LQ-0JA(z) with Zionite Laser-S Performance ------------- Evolutions (1) 500 Regions Visited (6) 1200 Robots Destroyed (13) 65 Value Destroyed (271) 271 Prototype IDs (0) 0 Alien Tech Used (0) 0 Bonus (0) 0 TOTAL SCORE: 2036 Bonus ------- None Cogmind --------- Core Integrity 0/400 Matter 295/300 Energy 92/100 System Corruption 0% Temperature Cool (20) Movement Flying (120) Ox1 Location -7/Deep Caves Parts ------- > --- POWER (1) -------- (None) > --- PROPULSION (2) --- Flight Unit > --- UTILITY (4) ------ ECM Suite > --- WEAPON (2) ------- CR-A16's Pointy Stick > --- INVENTORY (5) ---- Flight Unit Flight Unit Small Storage Unit ECM Suite Peak State ------------ > --- POWER ------------ Light Ion Engine > --- PROPULSION ------- Flight Unit VTOL Module > --- UTILITY ---------- ECM Suite ECM Suite > --- WEAPON ----------- Light Assault Rifle CR-A16's Pointy Stick > --- INVENTORY -------- Flight Unit Flight Unit Flight Unit Small Storage Unit Light Assault Rifle [Rating: 11] Favorites ----------- Power Ion Engine Engine Ion Engine Propulsion Aluminum Leg Leg Aluminum Leg Flight Unit Flight Unit Utility ECM Suite Device ECM Suite Storage Small Storage Unit Weapon Grenade Launcher Ballistic Gun Light Assault Rifle Launcher Grenade Launcher Piercing Weapon CR-A16's Pointy Stick Build | -11 -10 -10 -9 -9 -7 -7 ------- Run | Yrd Mat Min Mat Min Zio Dee Slots Evolved 2 | . . . 2 . . . Power . | . . . . . . . Propulsion . | . . . . . . . Utility 2 | . . . 2 . . . Weapon . | . . . . . . . Parts Attached 16 | 6 2 . . 6 1 1 Power 2 | 1 . . . 1 . . Engine 2 | 1 . . . 1 . . Core . | . . . . . . . Reactor . | . . . . . . . Propulsion 6 | 2 . . . 3 . 1 Treads . | . . . . . . . Leg 2 | 2 . . . . . . Wheel . | . . . . . . . Hover . | . . . . . . . Flight 4 | . . . . 3 . 1 Utility 3 | 1 1 . . 1 . . Device 2 | . 1 . . 1 . . Storage 1 | 1 . . . . . . Processor . | . . . . . . . Hackware . | . . . . . . . Protection . | . . . . . . . Artifact . | . . . . . . . Weapon 5 | 2 1 . . 1 1 . Energy Gun . | . . . . . . . Energy Cannon . | . . . . . . . Ballistic Gun 3 | 2 . . . 1 . . Ballistic Cannon . | . . . . . . . Launcher 1 | . 1 . . . . . Special Weapon . | . . . . . . . Impact Weapon . | . . . . . . . Slashing Weapon . | . . . . . . . Piercing Weapon 1 | . . . . . 1 . Special Melee Weapon . | . . . . . . . Unidentified Prototypes . | . . . . . . . Parts Lost 6 | . . . . 3 . 3 Power 2 | . . . . 1 . 1 Propulsion 3 | . . . . 1 . 2 Utility . | . . . . . . . Weapon 1 | . . . . 1 . . Highest Loss Streak 3 | . . . . 3 . 3 To Critical Strikes . | . . . . . . . Average Slot Usage (%) 66 | . 80 85 66 62 59 53 Engine 11 | . 14 14 11 10 11 9 Leg 13 | . 28 28 22 8 . . Flight 9 | . . . . 12 22 22 Device 14 | . 10 14 11 20 15 11 Storage 6 | . 14 14 11 5 . . Ballistic Gun 2 | . . . . 4 4 . Launcher 6 | . 13 14 11 3 . . Piercing Weapon 2 | . . . . . 6 11 Naked Turns . | . . . . . . . Heaviest Build 17 | 12 15 15 15 17 8 8 Greatest Support 20 | 20 20 20 20 20 8 8 Greatest Overweight (x) 3 | . . . . 3 . . Average Overweight (x) . | . . . . . . . Largest Inventory Capacity 8 | 8 8 8 8 8 5 5 Average Capacity 6 | 7 8 8 8 6 5 5 Most Carried 8 | . 3 4 6 8 5 5 Average Carried 4 | . 2 3 5 5 4 4 Final Capacity 8 | 8 8 8 8 5 5 5 Final Carried 6 | . 3 4 6 5 5 4 Class Distribution -------------------- 100% | Mutant Dominant Class ---------------- Mutant | -10/Materials Mutant | -10/Mines Mutant | -9/Materials Mutant | -9/Mines Mutant | -7/Zion Mutant | -7/Deep Caves Resources | -11 -10 -10 -9 -9 -7 -7 ----------- Run | Yrd Mat Min Mat Min Zio Dee Matter Collected 464 | 123 . . 49 282 10 . Remotely . | . . . . . . . Salvage Created 96 | . 3 . 76 17 . . Parts 18 | . 1 . 11 6 . . Haulers Intercepted . | . . . . . . . Recyclers Shooed 1 | . . . 1 . . . Parts Field Recycled . | . . . . . . . Retrieved Matter . | . . . . . . . Parts Self-Destructed . | . . . . . . . Prevented . | . . . . . . . Kills | -11 -10 -10 -9 -9 -7 -7 ------- Run | Yrd Mat Min Mat Min Zio Dee Combat Hostiles Destroyed 9 | . . . 5 4 . . Melee 2 | . . . . 2 . . Guns 1 | . . . . 1 . . AOE 6 | . . . 5 1 . . Classes Destroyed 7 | . 1 . 5 1 . . Worker 1 | . . . 1 . . . Builder 2 | . . . 2 . . . Operator 1 | . 1 . . . . . Swarmer 4 | . . . . 4 . . Grunt 2 | . . . 2 . . . Brawler 1 | . . . 1 . . . Sentry 2 | . . . 2 . . . Best Kill Streak 5 | . 1 . 5 2 . . Combat Bots Only 4 | . . . 4 2 . . Max Kills in Single Turn 1 | . 1 . 1 1 . . Gunslinging . | . . . . . . . Exploded 1 | . . . 1 1 . . Melee 1 | . . . . 1 . . Uniques/NPCs Destroyed . | . . . . . . . Combat | -11 -10 -10 -9 -9 -7 -7 -------- Run | Yrd Mat Min Mat Min Zio Dee Hostile Shots Fired 94 | . . . 23 37 . 34 Missed 40 | . . . 6 11 . 23 Damage Taken 870 | . 42 . 256 236 . 336 Core 432 | . 14 . 81 128 . 209 Absorbed by Shields . | . . . . . . . Core Remaining (%) 97 | 100 . 94 . . . . Volleys Fired 26 | . 3 . 16 7 . . Largest 1 | . 1 . 1 1 . . Hottest 30 | . 30 . 30 30 . . Shots Fired 26 | . 3 . 16 7 . . Gun 6 | . . . . 6 . . Cannon . | . . . . . . . Launcher 20 | . 3 . 16 1 . . Special . | . . . . . . . Kinetic 6 | . . . . 6 . . Thermal . | . . . . . . . Explosive 20 | . 3 . 16 1 . . Electromagnetic . | . . . . . . . Robot Hit Streak 6 | . 1 . 6 2 . . Robot Miss Streak 4 | . 1 . 1 4 . . Penetration Max . | . . . . . . . Secondary Targets . | . . . . . . . Shots Hit Robots 16 | . 1 . 13 2 . . Core Hits 31 | 2 1 . 17 11 . . Critical Kills . | . . . . . . . Critical Parts Destroyed . | . . . . . . . Critical Strikes . | . . . . . . . Melee Attacks . | . . . . . . . Impact . | . . . . . . . Slashing . | . . . . . . . Piercing . | . . . . . . . Sneak Attacks . | . . . . . . . Combat Hostiles . | . . . . . . . Follow-up Attacks . | . . . . . . . Damage Inflicted 1037 | 7 72 . 848 110 . . Guns 18 | . . . . 18 . . Cannons . | . . . . . . . Explosions 984 | . 72 . 848 64 . . Melee . | . . . . . . . Ramming 35 | 7 . . . 28 . . Kinetic 18 | . . . . 18 . . Thermal . | . . . . . . . Explosive 984 | . 72 . 848 64 . . Electromagnetic . | . . . . . . . Impact . | . . . . . . . Slashing . | . . . . . . . Piercing . | . . . . . . . Highest Corruption . | . . . . . . . Average Corruption . | . . . . . . . Corruption Purged . | . . . . . . . Corruption Blocked . | . . . . . . . Overload Shots . | . . . . . . . Overflow Damage . | . . . . . . . Projectiles . | . . . . . . . Explosions . | . . . . . . . Melee . | . . . . . . . Knockbacks 1 | 1 . . . . . . Impact 1 | 1 . . . . . . Kinetic . | . . . . . . . Secondary . | . . . . . . . Self-Inflicted Damage 60 | . 42 . 18 . . . Shots 4 | . 2 . 2 . . . Rammed . | . . . . . . . Targets Rammed 21 | 2 . . . 19 . . Kicked 21 | 2 . . . 19 . . Crushed . | . . . . . . . Highest Temperature 3 | . . . 1 3 . . Average Temperature 1 | . . . 1 2 . . Received Heat Transfer 174 | . . . 75 . . 99 Siege Activations . | . . . . . . . Robots Corrupted . | . . . . . . . Combat Hostiles . | . . . . . . . Parts Fried . | . . . . . . . Impact Corruptions . | . . . . . . . Robots Melted . | . . . . . . . Combat Hostiles . | . . . . . . . Parts Melted . | . . . . . . . Heat Transferred . | . . . . . . . Parts Sabotaged . | . . . . . . . Parts Stolen . | . . . . . . . Parts Stripped . | . . . . . . . Power Chain Reactions . | . . . . . . . Alert | -11 -10 -10 -9 -9 -7 -7 ------- Run | Yrd Mat Min Mat Min Zio Dee Peak Influence 230 | . 37 14 230 184 . . Initial 89 | . . 14 5 89 . . Average 87 | . 20 14 128 140 . . Maximum Alert Level 1 | . . . 1 . . . Low Security (%) 87 | 100 100 100 54 100 . . Level 1 12 | . . . 45 . . . Level 2 . | . . . . . . . Level 3 . | . . . . . . . Level 4 . | . . . . . . . Level 5 . | . . . . . . . High Security . | . . . . . . . Max Security . | . . . . . . . Squads Dispatched 2 | . . . 2 . . . Investigation 1 | . . . 1 . . . Extermination . | . . . . . . . Reinforcement 1 | . . . 1 . . . Assault . | . . . . . . . Garrison . | . . . . . . . Intercept . | . . . . . . . Searches Triggered . | . . . . . . . Construction Impeded . | . . . . . . . Haulers Reinforced . | . . . . . . . Active Scanning Responses . | . . . . . . . Cargo Convoy Interrupts . | . . . . . . . Stealth | -11 -10 -10 -9 -9 -7 -7 --------- Run | Yrd Mat Min Mat Min Zio Dee Distress Signals . | . . . . . . . Communications Jammed . | . . . . . . . Distress Signals . | . . . . . . . Times Spotted 23 | . 1 . 6 9 . 7 Peak Tracking Total 8 | . 1 . 4 3 . 8 Tactical Retreats 3 | . . . . 3 . . Traps | -11 -10 -10 -9 -9 -7 -7 ------- Run | Yrd Mat Min Mat Min Zio Dee Traps Triggered 1 | . . . 1 . . . Indirectly . | . . . . . . . Trap Hack Attempts . | . . . . . . . Triggered . | . . . . . . . Disarmed . | . . . . . . . Reprogrammed . | . . . . . . . Reused . | . . . . . . . Traps Extracted . | . . . . . . . Installed . | . . . . . . . Triggered . | . . . . . . . Machines | -11 -10 -10 -9 -9 -7 -7 ---------- Run | Yrd Mat Min Mat Min Zio Dee Machines Disabled 1 | . . . . 1 . . Max in Single Turn 1 | . . . . 1 . . Machines Repaired . | . . . . . . . Machines Dismantled . | . . . . . . . Machines Sabotaged . | . . . . . . . Overloaded Fab Kills . | . . . . . . . Hacking | -11 -10 -10 -9 -9 -7 -7 --------- Run | Yrd Mat Min Mat Min Zio Dee Machines Accessed 3 | . 3 . . . . . Terminals 3 | . 3 . . . . . Fabricators . | . . . . . . . Repair Stations . | . . . . . . . Recycling Units . | . . . . . . . Scanalyzers . | . . . . . . . Garrison Access . | . . . . . . . Total Hacks 6 | . 6 . . . . . Successful 5 | . 5 . . . . . Failed 1 | . 1 . . . . . Catastrophic . | . . . . . . . Database Lockouts . | . . . . . . . Manual 5 | . 1 . . . 4 . Terminals 6 | . 6 . . . . . Fabricators . | . . . . . . . Repair Stations . | . . . . . . . Recycling Units . | . . . . . . . Scanalyzers . | . . . . . . . Garrison Access . | . . . . . . . Terminal Hacks 5 | . 5 . . . . . Record 2 | . 2 . . . . . Branch Access Points 1 | . 1 . . . . . Terminal Index 1 | . 1 . . . . . Alert Level 1 | . 1 . . . . . Fabricator Hacks . | . . . . . . . Repair Station Hacks . | . . . . . . . Recycling Unit Hacks . | . . . . . . . Scanalyzer . | . . . . . . . Garrison Access Hacks . | . . . . . . . Unauthorized Hacks . | . . . . . . . Terminals . | . . . . . . . Fabricators . | . . . . . . . Repair Stations . | . . . . . . . Recycling Units . | . . . . . . . Scanalyzers . | . . . . . . . Garrison Access . | . . . . . . . Data Cores Recovered 1 | . 1 . . . . . Used 1 | . 1 . . . . . Hacking Detections 2 | . 2 . . . . . Full Trace Events . | . . . . . . . Feedback Events . | . . . . . . . Feedback Blocked . | . . . . . . . Robot Schematics Acquired 3 | . . . . . 3 . Robots Built . | . . . . . . . Authchips . | . . . . . . . Time . | . . . . . . . Total Robot Build Rating . | . . . . . . . Part Schematics Acquired 14 | . . . . . 14 . Parts Built . | . . . . . . . Authchips . | . . . . . . . Time . | . . . . . . . Total Part Build Rating . | . . . . . . . Parts Repaired . | . . . . . . . Time . | . . . . . . . Parts Recycled . | . . . . . . . Recycled Matter . | . . . . . . . Retrieved Matter . | . . . . . . . Retrieved Components . | . . . . . . . Parts Scanalyzed . | . . . . . . . Part Schematics Acquired . | . . . . . . . Parts Damaged . | . . . . . . . Bothacking | -11 -10 -10 -9 -9 -7 -7 ------------ Run | Yrd Mat Min Mat Min Zio Dee Used RIF Installer . | . . . . . . . Robots Hacked . | . . . . . . . Non-combat . | . . . . . . . Combat . | . . . . . . . Robot Hacks Applied . | . . . . . . . Relay Couplers Released . | . . . . . . . Fabnet Peak Effective % . | . . . . . . . Robots Rewired . | . . . . . . . Allies Hacked . | . . . . . . . Hacks Repelled . | . . . . . . . Allies | -11 -10 -10 -9 -9 -7 -7 -------- Run | Yrd Mat Min Mat Min Zio Dee Total Allies . | . . . . . . . Largest Group . | . . . . . . . Highest-Rated Group . | . . . . . . . Highest-Rated Ally . | . . . . . . . Total Orders . | . . . . . . . Ally Attacks . | . . . . . . . Total Damage . | . . . . . . . Kills . | . . . . . . . Allies Corrupted . | . . . . . . . Allies Melted . | . . . . . . . Intel | -11 -10 -10 -9 -9 -7 -7 ------- Run | Yrd Mat Min Mat Min Zio Dee Robot Analysis Total . | . . . . . . . Derelict Logs Recovered 2 | . . . . . 2 . Drone Launches . | . . . . . . . Drone Recoveries . | . . . . . . . Exploration | -11 -10 -10 -9 -9 -7 -7 ------------- Run | Yrd Mat Min Mat Min Zio Dee Turns Passed 1011 | 59 181 47 205 225 234 60 Spaces Moved 1463 | 45 142 37 143 351 575 170 Core 9 | 8 . . . 1 . . Treads . | . . . . . . . Legs 410 | 37 142 37 143 51 . . Wheels . | . . . . . . . Hover . | . . . . . . . Flight 1044 | . . . . 299 575 170 Fastest Speed 34 | 50 120 120 120 34 34 34 Average Speed 58 | 107 120 120 120 47 34 34 Slowest Speed 200 | 120 120 120 120 200 34 37 Overloaded Moves . | . . . . . . . Propulsion Burnouts . | . . . . . . . Robots Hopped 1 | . . . . 1 . . Cave-ins Triggered . | . . . . . . . Exploration Rate (%) 31 | 4 24 6 18 54 70 43 Regions Visited 6 Branch Regions 4 Pre-discovered Areas 3 | . . . . . 3 . Known Exits Taken 1 | . 1 . . . . . Unknown Exits Taken 5 | 1 . 1 1 1 1 . Scrap Searched 3 | . . . . 1 2 . Spaces Dug 8 | . 8 . . . . . Terrain Destroyed 79 | . 23 . 51 5 . . Melee . | . . . . . . . Projectile . | . . . . . . . AOE 79 | . 23 . 51 5 . . Terrain Rammed . | . . . . . . . Walls Destroyed . | . . . . . . . Machines Disabled . | . . . . . . . Actions | -11 -10 -10 -9 -9 -7 -7 --------- Run | Yrd Mat Min Mat Min Zio Dee Total 1581 | 52 149 39 160 397 613 171 Wait 41 | . . 2 . 4 35 . Move 1455 | 44 141 36 142 348 574 170 Hop 1 | . . . . 1 . . Pick Up 10 | . 1 1 2 6 . . Fast Attach 12 | 6 2 . . 3 1 . Attach 3 | . . . . 2 . 1 Detach 4 | . 2 . . 1 1 . Swap 1 | . . . . 1 . . Drop 7 | . . . . 5 2 . Fire 26 | . 3 . 16 7 . . Melee . | . . . . . . . Ram . | . . . . . . . Kick 21 | 2 . . . 19 . . Crush . | . . . . . . . Escape Stasis . | . . . . . . . Rewire . | . . . . . . . Trap . | . . . . . . . Miscellaneous . | . . . . . . . Route ------- -11/Scrapyard -10/Materials (discovered 2 exits: *Min x2) -10/Mines -9/Materials -9/Mines -7/Zion -7/Deep Caves History --------- Turn | Location | Event 16 | -11/Scrapyard | Discovered new exit (range 16) 60 | -11/Scrapyard | Entered Materials 111 | -10/Materials | Identified exit to Mines 241 | -10/Materials | Entered Mines 244 | -10/Mines | YI-UF0 nonchalantly dropped a Grenade Launcher on the ground 272 | -10/Mines | Discovered new exit (range 9) 288 | -10/Mines | Entered Materials 288 | -9/Materials | Evolved 2 slots: Utility x2 308 | -9/Materials | Build established: Mutant 477 | -9/Materials | Discovered new exit (range 13) 493 | -9/Materials | Entered Mines 503 | -9/Mines | Assembled infested the area 592 | -9/Mines | Lost 3 parts (1p1n1w) 677 | -9/Mines | Core integrity fell below 50% 715 | -9/Mines | A Derelict revealed a hidden shortcut to a safe place 718 | -9/Mines | Entered Zion 812 | -7/Zion | Found CR-A16's Pointy Stick 820 | -7/Zion | Learned location of Armory (-3) 843 | -7/Zion | Learned Factory trap positions 848 | -7/Zion | Learned 4 Factory zone layouts 849 | -7/Zion | Learned location of Extension (-5) 890 | -7/Zion | Given A8's code to call for help 896 | -7/Zion | Acquired unknown access codes intercepted by a Zionite 911 | -7/Zion | Learned location of Quarantine (-2) 938 | -7/Zion | Opened final containment barrier to the Deep Caves 949 | -7/Zion | Discovered new exit (range 5) 949 | -7/Zion | Saw the warning signs outside the Deep Caves entrance 952 | -7/Zion | Entered Deep Caves 990 | -7/Deep Caves | Attacked by Z-Imprinter 990 | -7/Deep Caves | Z-Facility disabled 1003 | -7/Deep Caves | Core integrity fell below 20% 1012 | -7/Deep Caves | Destroyed by LQ-0JA(z) with Zionite Laser-S Last Messages --------------- Containment barrier disabled. Signature recorded so we know who to blame when the place goes to hell. Again. JO-S72(M): These doors are sealed for a reason, and it's not to keep you or anyone else out. If you have the proper authorization, go ahead and get yourself scrapped. We aren't even sure what's down there anymore, but it only ever got worse over time, so I can't imagine it's a nice place for a stroll. 00949_ EXIT=FOUND 00949_ The room is plastered with warning signs of various forms. [Achievement: Signs Are For Wimps] [Achievement: Adventurer] LOCATION=UNKNOWN GOAL=ESCAPE 00979_ NEW_ZION: Z-Facility proximity alert. Z-Imprinter: GET AWAY FROM HERE! I've worked too hard for our future just to have you ruin everything! 00990_ Z-Facility disabled. 01003_ Lgt. Ion Engine destroyed. 01003_ VTOL Module destroyed. 01012_ Flight Unit destroyed. Map ----- +----------------------------------------------------+ | ???????????????????????????? # ## ??????? | | ????????????????????????? ????? | | ???????????????????????? ??? | | ???????????????????????? ??? | | ???????????????????????## ??? | | ???????????????????????# ""??? | | ????????????????????#### ""??? | | ????????????????????# # ""??? | | ????????????????????? ""??? | | ??????????????????????# """?? | | ???????????????????????# """?? | | ??????????????????????## """?? | | ??????????????????????# """"? | | ???????????????????????# """"? | | ????????????????????#### """"" | | ???????????????????## # """" | | ???????????????????# """" | | ???????????????????# """" | | ???????????????????# """" | | ???????????????????## """" | | ????????????????????##" """" | | ??????????????????????# """" | | ??????????????????????## I """" | | ???????????????????????# """" | | ???????????????????????#; """ | | ????????????????????????#@ """ | | ????????????????????????# z "" | | ????????????????????????; z "" | | ???????????????????????? " | | ??????????????????????? "" | | ??????????????????????? z "" | | ?????????????????????? "" | | ?????????????????????? | | ????????????????????? | | ????????????????????? | | ????????????????????# | | ????????????????????# | | ????????????????????## | | ?????????????????????# ? | | ?????????????????????# ????### ### | | ??????????????????????? ????????# ??## | | ????????????????????????????????????###????### | | ?????????????????????????????????????????????##### | | ?????????????????????????????????????????????????? | | | | | | | | | | | | | +----------------------------------------------------+ Best States ------------- Heat Dissipation 28 Energy Generation 10 Energy Capacity 250 Matter Stores 300 Matter Capacity 300 Sight Range 16 Terrain Scan Density 10 ECM Strength 2 Evasion (%) 63 Item Schematics ----------------- Lyr. Light Armor Plating | -7/Zion | Archive Flexi-carbon Leg | -7/Zion | Archive Gravmag System | -7/Zion | Archive Thermic Laser | -7/Zion | Archive Hvy. Missile Launcher | -7/Zion | Archive Focal Shield | -7/Zion | Archive Great Axe | -7/Zion | Archive Imp. Kinecellerator | -7/Zion | Archive Imp. Transmission Jammer | -7/Zion | Archive Matter Filter | -7/Zion | Archive Imp. System Restoration Module | -7/Zion | Archive Hvy. Ion Cannon | -7/Zion | Archive Arm. Leg | -7/Zion | Archive Mak. Cloaking Device | -7/Zion | Archive Robot Schematics ------------------ S-27 Virus | -7/Zion | Archive R-06 Scavenger | -7/Zion | Archive B-48 Gladiator | -7/Zion | Archive Fabricated ------------ Nothing Alien Tech Used ----------------- None Achievements -------------- Adventurer Signs Are For Wimps Challenges ------------ None Game ------ Seed SystemRocketProjector Manual? 0 Play Time 00:25:04 Cumulative 6.4 hours Start 2024.04.01 @ 14:36:41 End 2024.04.01 @ 15:00:20 Sessions 1 Manual Loads 0 Difficulty Rogue Special Mode None Game No. 13 Rogue 11 Adventurer 2 Explorer 0 Win Type - Total 0 Types 0/0/0/0/0/0/0/0/0 Lore% 14 Gallery% 13 Achievement% 14 Wizard Run 0 Options --------- Layout 0 ASCII 0 Keyboard 1 Movement Arrows Keybinds 0 Fullscreen 2 Font 18/SmallcapsGlow Map View 76x50 Zoom Use 0% Tactical HUD 1 Map Filters NONE Filters NONE Steam 1 RUN: 7d2c129f-b42f-455d-ac97-80cdf65ecacc